Cogmind - Beta 13 @@@ ROGUE MODE // 2024.03.14 @ 21:10:57 Player: Cheeriohz Result: Destroyed by Y-45 Defender with Heavy Assault Rifle Performance ------------- Evolutions (2) 1000 Regions Visited (8) 1600 Robots Destroyed (51) 255 Value Destroyed (1784) 1784 Prototype IDs (2) 40 Alien Tech Used (0) 0 Bonus (873) 873 TOTAL SCORE: 5552 Bonus ------- High Alert Combat Kills 57 Follower Combat Kills 116 Entered Garrisons 200 Used RIF Installer 500 Cogmind --------- Core Integrity 0/550 Matter 260/300 Energy 135/290 System Corruption 7% Temperature Cool (26) Movement Core (650) Ox12 Location -8/Materials Parts ------- > --- POWER (1) -------- Improved Deuterium Engine > --- PROPULSION (3) --- Cesium-ion Thruster > --- UTILITY (5) ------ Large Storage Unit Visual Processing Unit Targeting Computer Target Analyzer > --- WEAPON (2) ------- Assault Cannon Heavy Mace > --- INVENTORY (15) --- Light Nuclear Core Improved Cooling System Relay Coupler [Swarmer] (43) Relay Coupler [Grunt] (29) Relay Coupler [Grunt] (35) Relay Coupler [Duelist] (25) Relay Coupler [Sentry] (21) Relay Coupler [Sentry] (19) Relay Coupler [Hunter] (16) Relay Coupler [Hunter] (22) Relay Coupler [Heavy] (10) Shock Rifle Peak State ------------ > --- POWER ------------ Improved Deuterium Engine > --- PROPULSION ------- Light Treads Gravmag System Cesium-ion Thruster > --- UTILITY ---------- Large Storage Unit High-capacity Matter Pod Visual Processing Unit Targeting Computer Target Analyzer > --- WEAPON ----------- Shock Rifle Particle Gun > --- INVENTORY -------- Light Nuclear Core Improved Deuterium Engine Improved Cooling System Sensor Array Relay Coupler [Swarmer] Relay Coupler [Grunt] Relay Coupler [Grunt] Relay Coupler [Duelist] Relay Coupler [Sentry] Relay Coupler [Sentry] Relay Coupler [Hunter] Relay Coupler [Hunter] Relay Coupler [Heavy] Light Assault Rifle Heavy Mace [Rating: 30] Favorites ----------- Power Improved Ion Engine Engine Improved Ion Engine Propulsion Wheel Treads Light Treads Leg Aluminum Leg Wheel Wheel Hover Unit Gravmag System Flight Unit Cesium-ion Thruster Utility Large Storage Unit Device Shield Generator Storage Large Storage Unit Processor Targeting Computer Protection Propulsion Shielding Weapon Heavy Assault Rifle Energy Gun Shock Rifle Energy Cannon Beam Cannon Ballistic Gun Heavy Assault Rifle Ballistic Cannon Light Cannon Launcher Shock Bomb Launcher Impact Weapon Heavy Mace Build | -11 -10 -9 -9 -9 -8 -8 -8 -8 ------- Run | Yrd Mat Mat Min Exi Min Mat Gar Mat Slots Evolved 4 | . . 2 . . . 2 . . Power . | . . . . . . . . . Propulsion 1 | . . . . . . 1 . . Utility 3 | . . 2 . . . 1 . . Weapon . | . . . . . . . . . Parts Attached 56 | . 5 13 . 1 2 14 13 8 Power 8 | . . 4 . . . 2 1 1 Engine 8 | . . 4 . . . 2 1 1 Core . | . . . . . . . . . Reactor . | . . . . . . . . . Propulsion 14 | . 3 3 . . . 4 3 1 Treads 2 | . . . . . . . 2 . Leg 1 | . 1 . . . . . . . Wheel 9 | . 2 3 . . . 4 . . Hover 1 | . . . . . . . 1 . Flight 1 | . . . . . . . . 1 Utility 12 | . 1 3 . 1 . 3 3 1 Device 2 | . . 1 . . . . . 1 Storage 3 | . 1 . . 1 . 1 . . Processor 3 | . . 1 . . . 1 1 . Hackware . | . . . . . . . . . Protection 4 | . . 1 . . . 1 2 . Artifact . | . . . . . . . . . Weapon 22 | . 1 3 . . 2 5 6 5 Energy Gun 3 | . . . . . . . 2 1 Energy Cannon 3 | . 1 1 . . . 1 . . Ballistic Gun 9 | . . 2 . . 2 2 3 . Ballistic Cannon 5 | . . . . . . 2 1 2 Launcher 1 | . . . . . . . . 1 Special Weapon . | . . . . . . . . . Impact Weapon 1 | . . . . . . . . 1 Slashing Weapon . | . . . . . . . . . Piercing Weapon . | . . . . . . . . . Special Melee Weapon . | . . . . . . . . . Unidentified Prototypes . | . . . . . . . . . Parts Lost 25 | . . 1 . . 2 4 12 6 Power 3 | . . . . . . 1 1 1 Propulsion 9 | . . . . . . 3 4 2 Utility 3 | . . . . . 1 . 1 1 Weapon 10 | . . 1 . . 1 . 6 2 Highest Loss Streak 9 | . . 1 . . 2 2 9 6 To Critical Strikes 2 | . . . . . . . 2 . Average Slot Usage (%) 94 | . 98 99 100 100 87 91 85 96 Engine 10 | . 14 11 11 11 11 9 9 8 Treads 1 | . . . . . . . 4 8 Leg 2 | . 13 . . . . . . . Wheel 16 | . 15 22 22 22 22 20 11 . Hover 1 | . . . . . . . 2 8 Device 3 | . . 7 11 11 . . . 2 Storage 16 | . 26 14 11 11 11 13 18 15 Processor 13 | . . 11 11 11 11 17 20 27 Protection 6 | . . 11 11 11 11 12 5 . Energy Gun 2 | . 2 . . . . . 3 12 Energy Cannon 3 | . 11 8 . . . 2 . . Ballistic Gun 13 | . 14 12 22 22 21 10 10 1 Naked Turns . | . . . . . . . . . Heaviest Build 43 | 11 33 38 34 34 31 41 43 42 Greatest Support 30 | 20 20 26 20 20 20 30 30 20 Greatest Overweight (x) 4 | . 1 1 1 1 1 3 3 4 Average Overweight (x) 1 | . . 1 1 1 1 1 1 1 Largest Inventory Capacity 15 | 8 15 15 15 15 15 15 15 15 Average Capacity 14 | 8 14 15 15 15 15 15 15 15 Most Carried 15 | 6 14 15 15 15 15 15 15 15 Average Carried 13 | 6 9 14 15 15 14 12 13 14 Final Capacity 15 | 8 15 15 15 15 15 15 15 15 Final Carried 15 | 6 14 15 15 15 15 14 15 12 Class Distribution -------------------- 65% | Mutant 34% | Scavenger-Mutant Dominant Class ---------------- Mutant | -10/Materials Mutant | -9/Materials Mutant | -9/Mines Scavenger-Mutant | -9/Exiles Mutant | -8/Mines Mutant | -8/Materials Scavenger-Mutant | -8/Garrison Mutant | -8/Materials Resources | -11 -10 -9 -9 -9 -8 -8 -8 -8 ----------- Run | Yrd Mat Mat Min Exi Min Mat Gar Mat Matter Collected 1515 | 200 65 481 . 42 61 264 348 54 Remotely . | . . . . . . . . . Salvage Created 1807 | . 145 677 . . 213 361 290 121 Parts 90 | . 11 33 . . 9 19 13 5 Haulers Intercepted 2 | . . 2 . . . . . . Recyclers Shooed 3 | . . 1 . . 1 . . 1 Parts Field Recycled . | . . . . . . . . . Retrieved Matter . | . . . . . . . . . Parts Self-Destructed . | . . . . . . . . . Prevented . | . . . . . . . . . Kills | -11 -10 -9 -9 -9 -8 -8 -8 -8 ------- Run | Yrd Mat Mat Min Exi Min Mat Gar Mat Combat Hostiles Destroyed 38 | . 5 9 . . 3 9 11 1 Guns 23 | . 1 8 . . 3 3 8 . Cannons 12 | . 4 1 . . . 3 3 1 AOE 2 | . . . . . . 2 . . Classes Destroyed 10 | . 3 5 . . . 1 1 . Worker 4 | . . 2 . . . 1 . 1 Builder 1 | . . . . . . 1 . . Hauler 2 | . . 2 . . . . . . Recycler 5 | . . 2 . . 2 . . 1 Watcher 1 | . 1 . . . . . . . Swarmer 18 | . 3 3 . . 3 3 6 . Grunt 10 | . 2 2 . . . 5 . 1 Duelist 1 | . . 1 . . . . . . Sentry 6 | . . 3 . . . 1 2 . Programmer 3 | . . . . . . . 3 . Best Kill Streak 6 | . 5 5 . . 5 4 6 1 Combat Bots Only 6 | . 5 3 . . 3 4 6 1 Max Kills in Single Turn 1 | . 1 1 . . 1 1 1 1 Gunslinging . | . . . . . . . . . Exploded 1 | . . . . . . 1 . . Melee . | . . . . . . . . . Uniques/NPCs Destroyed . | . . . . . . . . . Combat | -11 -10 -9 -9 -9 -8 -8 -8 -8 -------- Run | Yrd Mat Mat Min Exi Min Mat Gar Mat Hostile Shots Fired 390 | . 14 78 . . 29 56 152 61 Missed 108 | . 4 26 . . 3 11 46 18 Damage Taken 3409 | . 92 534 . . 198 584 1318 683 Core 776 | . 19 152 . . 54 139 192 220 Absorbed by Shields 132 | . . 111 . . 21 . . . Redirected to Shielding 85 | . . 18 . . 13 37 17 . Regen/Repaired (Parts) 27 | . . 27 . . . . . . Core Remaining (%) 80 | 100 92 . . . 48 . . . Volleys Fired 188 | . 14 51 . . 15 36 59 13 Largest 2 | . 2 2 . . 2 2 2 1 Hottest 94 | . 80 83 . . 43 63 94 65 Shots Fired 305 | . 28 96 . . 27 50 90 14 Gun 212 | . 14 59 . . 27 28 74 10 Cannon 92 | . 14 37 . . . 22 16 3 Launcher 1 | . . . . . . . . 1 Special . | . . . . . . . . . Kinetic 211 | . 14 59 . . 27 36 71 4 Thermal 60 | . 14 37 . . . . . 9 Explosive . | . . . . . . . . . Electromagnetic 34 | . . . . . . 14 19 1 Robot Hit Streak 16 | . 3 16 . . 6 10 9 8 Robot Miss Streak 5 | . 5 3 . . 3 3 4 1 Penetration Max . | . . . . . . . . . Secondary Targets 3 | . . . . . 1 . 2 . Max Gunslinging Chain 1 | . . . . . 1 . 1 . Shots Hit Robots 204 | . 11 74 . . 16 30 63 10 Core Hits 80 | . 8 24 . . 7 14 21 6 Critical Kills . | . . . . . . . . . Critical Parts Destroyed 2 | . . 1 . . . . 1 . Critical Strikes 4 | . . 1 . . . . 1 2 Destroy 2 | . . 1 . . . . 1 . Blast 2 | . . . . . . . . 2 Melee Attacks . | . . . . . . . . . Impact . | . . . . . . . . . Slashing . | . . . . . . . . . Piercing . | . . . . . . . . . Sneak Attacks . | . . . . . . . . . Combat Hostiles . | . . . . . . . . . Follow-up Attacks . | . . . . . . . . . Damage Inflicted 3467 | . 153 1135 . . 201 796 1011 171 Guns 2109 | . 68 642 . . 201 325 751 122 Cannons 1242 | . 85 493 . . . 355 260 49 Explosions 116 | . . . . . . 116 . . Melee . | . . . . . . . . . Ramming . | . . . . . . . . . Kinetic 2307 | . 68 642 . . 201 396 951 49 Thermal 816 | . 85 493 . . . 116 . 122 Explosive . | . . . . . . . . . Electromagnetic 344 | . . . . . . 284 60 . Impact . | . . . . . . . . . Slashing . | . . . . . . . . . Piercing . | . . . . . . . . . Highest Corruption 7 | . . . . . . . 7 7 Average Corruption 6 | . . . . . . . 6 7 Corruption Purged . | . . . . . . . . . Corruption Blocked . | . . . . . . . . . Effects 25 | . . . . . . . 10 15 Message Errors 4 | . . . . . . . 1 3 Matter Fused 9 | . . . . . . . 3 6 Heat Flow Errors 3 | . . . . . . . 1 2 Data Loss (minor) 3 | . . . . . . . 3 . Data Loss (major) 2 | . . . . . . . . 2 Misfires 1 | . . . . . . . . 1 Alerts 3 | . . . . . . . 2 1 Overload Shots . | . . . . . . . . . Overflow Damage 19 | . 9 . . . . 3 7 . Projectiles 19 | . 9 . . . . 3 7 . Explosions . | . . . . . . . . . Melee . | . . . . . . . . . Knockbacks 7 | . . . . . . 1 5 1 Impact . | . . . . . . . . . Kinetic 7 | . . . . . . 1 5 1 Secondary . | . . . . . . . . . Self-Inflicted Damage 21 | . . . . . . . . 21 Shots 1 | . . . . . . . . 1 Rammed . | . . . . . . . . . Targets Rammed . | . . . . . . . . . Kicked . | . . . . . . . . . Crushed . | . . . . . . . . . Highest Temperature 250 | . 132 195 . . . 111 143 250 Average Temperature 48 | . 45 56 . . . 33 46 55 Received Heat Transfer 855 | . 6 165 . . . 270 72 342 Siege Activations . | . . . . . . . . . Robots Corrupted 1 | . . . . . . 1 . . Combat Hostiles 1 | . . . . . . 1 . . Parts Fried 3 | . . . . . . 3 . . Impact Corruptions . | . . . . . . . . . Robots Melted . | . . . . . . . . . Combat Hostiles . | . . . . . . . . . Parts Melted 1 | . . . . . . . . 1 Heat Transferred 1617 | . 185 1036 . . . 100 . 296 Parts Sabotaged . | . . . . . . . . . Parts Stolen . | . . . . . . . . . Parts Stripped . | . . . . . . . . . Power Chain Reactions 2 | . . . . . . 2 . . Alert | -11 -10 -9 -9 -9 -8 -8 -8 -8 ------- Run | Yrd Mat Mat Min Exi Min Mat Gar Mat Peak Influence 717 | . 203 214 79 . 75 393 717 369 Initial 349 | . . 3 79 . . 29 255 349 Average 218 | . 57 93 79 . 71 220 558 181 Maximum Alert Level 3 | . 1 1 . . . 1 3 1 Low Security (%) 62 | 100 92 92 100 . 100 40 . 62 Level 1 18 | . 7 7 . . . 59 19 37 Level 2 14 | . . . . . . . 59 . Level 3 4 | . . . . . . . 20 . Level 4 . | . . . . . . . . . Level 5 . | . . . . . . . . . High Security . | . . . . . . . . . Max Security . | . . . . . . . . . Squads Dispatched 7 | . 1 . . . . 3 . 3 Investigation 4 | . 1 . . . . 1 . 2 Extermination . | . . . . . . . . . Reinforcement 3 | . . . . . . 2 . 1 Assault . | . . . . . . . . . Garrison . | . . . . . . . . . Intercept . | . . . . . . . . . Searches Triggered . | . . . . . . . . . Construction Impeded . | . . . . . . . . . Haulers Reinforced . | . . . . . . . . . Active Scanning Responses . | . . . . . . . . . Cargo Convoy Interrupts . | . . . . . . . . . Stealth | -11 -10 -9 -9 -9 -8 -8 -8 -8 --------- Run | Yrd Mat Mat Min Exi Min Mat Gar Mat Distress Signals 4 | . . 3 . . . 1 . . Communications Jammed . | . . . . . . . . . Distress Signals . | . . . . . . . . . Times Spotted 80 | . 8 23 . . 3 16 20 10 Peak Tracking Total 9 | . 3 6 . . 3 4 6 9 Tactical Retreats 8 | . . 3 . . . 3 2 . Traps | -11 -10 -9 -9 -9 -8 -8 -8 -8 ------- Run | Yrd Mat Mat Min Exi Min Mat Gar Mat Traps Triggered 9 | . 1 1 . . . . 6 1 Indirectly . | . . . . . . . . . Trap Hack Attempts . | . . . . . . . . . Triggered . | . . . . . . . . . Disarmed . | . . . . . . . . . Reprogrammed . | . . . . . . . . . Reused . | . . . . . . . . . Traps Extracted . | . . . . . . . . . Installed . | . . . . . . . . . Triggered 2 | . . . . . . 2 . . Machines | -11 -10 -9 -9 -9 -8 -8 -8 -8 ---------- Run | Yrd Mat Mat Min Exi Min Mat Gar Mat Machines Disabled 6 | . 1 . . . . 2 3 . Max in Single Turn 1 | . 1 . . . . 1 1 . Garrison Relay 3 | . . . . . . . 3 . Machines Repaired . | . . . . . . . . . Machines Dismantled . | . . . . . . . . . Machines Sabotaged . | . . . . . . . . . Overloaded Fab Kills . | . . . . . . . . . Hacking | -11 -10 -9 -9 -9 -8 -8 -8 -8 --------- Run | Yrd Mat Mat Min Exi Min Mat Gar Mat Machines Accessed 13 | . 4 3 . . . 2 2 2 Terminals 8 | . 2 1 . . . 1 2 2 Fabricators . | . . . . . . . . . Repair Stations 2 | . 1 1 . . . . . . Recycling Units 1 | . 1 . . . . . . . Scanalyzers 1 | . . 1 . . . . . . Garrison Access 1 | . . . . . . 1 . . Total Hacks 33 | . 9 6 . . . 7 3 8 Successful 17 | . 5 6 . . . 3 . 3 Failed 16 | . 4 . . . . 4 3 5 Catastrophic 2 | . 1 . . . . . . 1 Database Lockouts . | . . . . . . . . . Manual 21 | . 11 2 . . . . . 8 Terminals 23 | . 6 2 . . . 4 3 8 Fabricators . | . . . . . . . . . Repair Stations 3 | . 1 2 . . . . . . Recycling Units 2 | . 2 . . . . . . . Scanalyzers 2 | . . 2 . . . . . . Garrison Access 3 | . . . . . . 3 . . Terminal Hacks 7 | . 2 1 . . . 2 . 2 Prototype ID Bank 1 | . 1 . . . . . . . Unreport Threat 3 | . . 1 . . . . . 2 Locate Traps 1 | . . . . . . 1 . . Maintenance Status 1 | . 1 . . . . . . . Hauler Manifests 1 | . . . . . . 1 . . Fabricator Hacks . | . . . . . . . . . Repair Station Hacks 2 | . . 2 . . . . . . Scan Component 1 | . . 1 . . . . . . Repair 1 | . . 1 . . . . . . Recycling Unit Hacks 1 | . 1 . . . . . . . Process 1 | . 1 . . . . . . . Scanalyzer 2 | . . 2 . . . . . . Insert Component 1 | . . 1 . . . . . . Analyze 1 | . . 1 . . . . . . Garrison Access Hacks 1 | . . . . . . 1 . . Unlock Access 1 | . . . . . . 1 . . Unauthorized Hacks 4 | . 2 1 . . . . . 1 Terminals 3 | . 1 1 . . . . . 1 Botnet 3 | . 1 1 . . . . . 1 Fabricators . | . . . . . . . . . Repair Stations 1 | . 1 . . . . . . . Mechanics 1 | . 1 . . . . . . . Recycling Units . | . . . . . . . . . Scanalyzers . | . . . . . . . . . Garrison Access . | . . . . . . . . . Data Cores Recovered . | . . . . . . . . . Used . | . . . . . . . . . Hacking Detections 12 | . 4 2 . . . 2 2 2 Full Trace Events 2 | . . . . . . . 1 1 Feedback Events . | . . . . . . . . . Feedback Blocked . | . . . . . . . . . Robot Schematics Acquired . | . . . . . . . . . Robots Built . | . . . . . . . . . Authchips . | . . . . . . . . . Time . | . . . . . . . . . Total Robot Build Rating . | . . . . . . . . . Part Schematics Acquired 1 | . . 1 . . . . . . Parts Built . | . . . . . . . . . Authchips . | . . . . . . . . . Time . | . . . . . . . . . Total Part Build Rating . | . . . . . . . . . Parts Repaired 1 | . . 1 . . . . . . Time 26 | . . 26 . . . . . . Parts Recycled . | . . . . . . . . . Recycled Matter 166 | . 166 . . . . . . . Retrieved Matter . | . . . . . . . . . Retrieved Components . | . . . . . . . . . Parts Scanalyzed 1 | . . 1 . . . . . . Part Schematics Acquired 1 | . . 1 . . . . . . Parts Damaged . | . . . . . . . . . Bothacking | -11 -10 -9 -9 -9 -8 -8 -8 -8 ------------ Run | Yrd Mat Mat Min Exi Min Mat Gar Mat Used RIF Installer 1 | . . . . . . . 1 . Robots Hacked . | . . . . . . . . . Non-combat . | . . . . . . . . . Combat . | . . . . . . . . . Robot Hacks Applied . | . . . . . . . . . Relay Couplers Released 13 | . . . . . . . 13 . Machine Destruction 13 | . . . . . . . 13 . Fabnet Peak Effective % . | . . . . . . . . . Robots Rewired . | . . . . . . . . . Allies Hacked . | . . . . . . . . . Hacks Repelled . | . . . . . . . . . Allies | -11 -10 -9 -9 -9 -8 -8 -8 -8 -------- Run | Yrd Mat Mat Min Exi Min Mat Gar Mat Total Allies 2 | . . . . . . . 2 . Largest Group 2 | . . . . . . . 2 . Highest-Rated Group 56 | . . . . . . . 56 . Highest-Rated Ally 31 | . . . . . . . 31 . Total Orders . | . . . . . . . . . Ally Attacks 21 | . . . . . . . 21 . Total Damage 441 | . . . . . . . 441 . Kills 6 | . . . . . . . 6 . Allies Corrupted 1 | . . . . . . . 1 . Allies Melted . | . . . . . . . . . Intel | -11 -10 -9 -9 -9 -8 -8 -8 -8 ------- Run | Yrd Mat Mat Min Exi Min Mat Gar Mat Robot Analysis Total . | . . . . . . . . . Derelict Logs Recovered . | . . . . . . . . . Drone Launches . | . . . . . . . . . Drone Recoveries . | . . . . . . . . . Exploration | -11 -10 -9 -9 -9 -8 -8 -8 -8 ------------- Run | Yrd Mat Mat Min Exi Min Mat Gar Mat Turns Passed 3501 | 10 564 732 17 417 331 309 732 389 Spaces Moved 2322 | 9 414 480 18 438 305 167 353 138 Core . | . . . . . . . . . Treads 228 | . . . . . . . 92 136 Legs 146 | 9 137 . . . . . . . Wheels 1946 | . 277 480 18 438 305 167 261 . Hover 2 | . . . . . . . . 2 Flight . | . . . . . . . . . Fastest Speed 95 | 120 95 95 95 95 95 95 95 240 Average Speed 114 | 120 119 95 95 95 95 96 138 241 Slowest Speed 320 | 120 190 105 95 95 95 125 240 320 Overloaded Moves . | . . . . . . . . . Propulsion Burnouts . | . . . . . . . . . Robots Hopped . | . . . . . . . . . Cave-ins Triggered . | . . . . . . . . . Exploration Rate (%) 38 | 2 66 33 5 90 73 17 47 16 Regions Visited 8 Branch Regions 3 Pre-discovered Areas 1 | . . . 1 . . . . . Known Exits Taken 1 | . . . . . . 1 . . Unknown Exits Taken 6 | 1 1 1 1 1 1 . . . Scrap Searched 1 | . . . . . 1 . . . Spaces Dug . | . . . . . . . . . Terrain Destroyed 11 | . . . . . . 11 . . Melee . | . . . . . . . . . Projectile . | . . . . . . . . . AOE 11 | . . . . . . 11 . . Terrain Rammed . | . . . . . . . . . Walls Destroyed . | . . . . . . . . . Machines Disabled . | . . . . . . . . . Actions | -11 -10 -9 -9 -9 -8 -8 -8 -8 --------- Run | Yrd Mat Mat Min Exi Min Mat Gar Mat Total 2864 | 8 454 663 17 439 321 267 514 181 Wait 183 | . 9 99 . . . 37 23 15 Move 2313 | 8 413 479 17 437 304 166 351 138 Hop . | . . . . . . . . . Pick Up 38 | . 10 9 . . . 5 11 3 Fast Attach 17 | . 1 2 . . . 5 7 2 Attach 21 | . . 4 . . 1 7 5 4 Detach 6 | . . 1 . . . 4 1 . Swap 18 | . 4 7 . 1 1 2 1 2 Drop 31 | . 3 11 . 1 . 5 7 4 Fire 188 | . 14 51 . . 15 36 59 13 Melee . | . . . . . . . . . Ram . | . . . . . . . . . Kick . | . . . . . . . . . Crush . | . . . . . . . . . Escape Stasis 49 | . . . . . . . 49 . Rewire . | . . . . . . . . . Trap . | . . . . . . . . . Miscellaneous . | . . . . . . . . . Route ------- -11/Scrapyard -10/Materials (discovered 2 exits: *Mat x2) -9/Materials (discovered 2 exits: *Mat / [*Min]) -9/Mines -9/Exiles (discovered 2 exits: [*Min x2]) -8/Mines -8/Materials -8/Garrison -8/Materials History --------- Turn | Location | Event 1 | -11/Scrapyard | Discovered new exit (range 3) 11 | -11/Scrapyard | Entered Materials 302 | -10/Materials | Build established: Mutant 345 | -10/Materials | Discovered new exit (range 5) 516 | -10/Materials | Discovered new exit (range 13) 575 | -10/Materials | Entered another Materials area 575 | -9/Materials | Evolved 2 slots: Utility x2 945 | -9/Materials | Discovered new exit (range 11) 1059 | -9/Materials | Repaired Wheel 1233 | -9/Materials | Discovered new exit (range 16) 1307 | -9/Materials | Entered Mines 1308 | -9/Mines | Learned location of Storage (-7) 1318 | -9/Mines | Deemed a non-threat by the Exiles lab entrance 1318 | -9/Mines | Discovered new exit (range 5) 1324 | -9/Mines | Entered Exiles 1337 | -9/Exiles | Discovered new exit (range 15) 1346 | -9/Exiles | Met 8R-AWN 1363 | -9/Exiles | Met EX-HEX 1414 | -9/Exiles | Met EX-DEC 1439 | -9/Exiles | Visited The Gauntlet 1475 | -9/Exiles | Build established: Scavenger-Mutant 1581 | -9/Exiles | Met EX-BIN 1730 | -9/Exiles | Discovered new exit (range 14) 1741 | -9/Exiles | Entered Mines 1760 | -8/Mines | Core integrity fell below 50% 2049 | -8/Mines | Discovered new exit (range 11) 2055 | -8/Mines | Build established: Mutant 2072 | -8/Mines | Entered Materials 2072 | -8/Materials | Evolved 2 slots: Propulsion x1, Utility x1 2380 | -8/Materials | Identified exit to Garrison 2381 | -8/Materials | Entered Garrison 2446 | -8/Garrison | Rescued a captive Derelict 2446 | -8/Garrison | Rescued a captive Derelict 2497 | -8/Garrison | Installed Relay Interface Framework 2524 | -8/Garrison | Triggered checkpoint 2526 | -8/Garrison | Garrison Relay disabled 2543 | -8/Garrison | Garrison Relay disabled 2560 | -8/Garrison | Triggered checkpoint 2680 | -8/Garrison | Triggered checkpoint 2700 | -8/Garrison | Triggered checkpoint 2724 | -8/Garrison | Build established: Scavenger-Mutant 2766 | -8/Garrison | Triggered checkpoint 2839 | -8/Garrison | Core integrity fell below 50% 2917 | -8/Garrison | Lost 9 parts (1p3n1u4w) 2962 | -8/Garrison | Garrison Relay disabled 3053 | -8/Garrison | Discovered new exit (range 11) 3113 | -8/Garrison | Entered Materials 3463 | -8/Materials | Build established: Mutant 3483 | -8/Materials | Core integrity fell below 20% 3502 | -8/Materials | Destroyed by Y-45 Defender with Heavy Assault Rifle Last Messages --------------- M010. 03443_ Integration Channel disabled. 03449_ Critical hit (Burn: +37). 03457_ System corrupted: Matter fused (-8). 03469_ Hadron Collector disabled. 03475_ Lgt. Treads destroyed. 03475_ Critical hit (Burn: +37). 03480_ System corrupted: Matter fused (-9). 03480_ Gravmag System destroyed. 03484_ Imp. Deuterium Engine destroyed. 03487_ Critical hit (Burn: +37). 03488_ Particle Gun destroyed. 03488_ G-47 Trooper destroyed. 03490_ Door malfunctions. 03495_ Shock Bomb Launcher destroyed. 03496_ Sensor Array destroyed. 03497_ G-47 Trooper Imp. Heat Sink blasted off. 03501_ UR=>>S9UL SHVKHFHC6A#6 03501_ G-47 Trooper Aluminum Leg blasted off. 03501_ G-47 Trooper destroyed. Map ----- +----------------------------------------------------+ | ????????????????# ## #????????? | | ????????????????# ## #????????? | | ????????????????# ## #????????? | | ??????########### ## #????????? | | ??????# ## ## #????????? | | ??????# ## #########????????? | | ??????# # = ########????????? | | ??????# %! #!% # #????????? | | ??????# + *T # #????????? | | ??????# # # """" #????????? | | ??????# # # """" #????????? | | ??????# ## ## """" #????????? | | ??????# ## ## #????????? | | ??????########### ##+##+########???? | | ????????# + + #???? | | ????????# # # """ #???? | | ????????# # # """ #???? | | ????????#+####### + """ #???? | | ????????????######+######u# """ #???? | | ????????????# # # #???? | | ????????????# #g########???? | | ????????????# [ # #??????????? | | ????????????# # #??????????? | | ????????????# # #??????????? | | ????????????# # #??????????? | | ????????????# #@#??????????? | | ????????????###+#########=#??????????? | | ?????????????????????####/######?????? | | ?????????????????????# %[ / #?????? | | ?????????????????????# %!=! #?????? | | ?????????????????????# "%* #?????? | | ?????????????????????# " #?????? | | ??????? ????????????# "" #?????? | | ???????? ??????????# """Y"T" #?????? | | ?????????? ????????# """ #?????? | | ???????????""" ??????# #?????? | | ??????????""""" #######+#######?????? | | ???????? """ " #?????????? | | ???# #?????????? | | ???# #######+###?????????? | | ??????########+??????? ??????????? | | ???????????????????? ! ????????? | | ???????????????????# #???????? | | ???????????????????# #???????? | | ???????????????????# #??????? | | ???????????????????# """ """ ##??????? | | ???????????????????# """ """ #???????? | | ???????????????????# """ """ #???????? | | ???????????????????###########???????? | | ?????????????????????????????????????? | +----------------------------------------------------+ Best States ------------- Heat Dissipation 31 Energy Generation 16 Energy Capacity 290 Matter Stores 500 Matter Capacity 500 Sight Range 18 Robot Scan Range 14 Terrain Scan Density 10 Armor Coverage 150 Propulsion Shielding 33 Evasion (%) 55 Targeting Accuracy 5 Target Analysis 5 Recoil Reduction 1 Item Schematics ----------------- Propulsion Shielding | -9/Materials | Scanalyzed Robot Schematics ------------------ None Fabricated ------------ Nothing Alien Tech Used ----------------- None Achievements -------------- None Challenges ------------ None Game ------ Seed CompositeAutogunBlaster Manual? 0 Play Time 00:56:36 Cumulative 69.2 hours Start 2024.03.14 @ 20:16:31 End 2024.03.14 @ 21:10:57 Sessions 5 Manual Loads 0 Difficulty Rogue Special Mode None Game No. 60 Rogue 60 Adventurer 0 Explorer 0 Win Type - Total 2 Types 2/0/0/0/0/0/0/0/0 Lore% 36 Gallery% 49 Achievement% 40 Wizard Run 0 Options --------- Layout 1 ASCII 0 Keyboard 1 Movement Numpad Keybinds 0 Fullscreen 1 Font 32/SmallcapsGlow Map View 77x35 Zoom Use 4% Tactical HUD 1 Map Filters NONE Filters NONE Steam 1 RUN: 0d2f7ee2-f5a7-4c67-80c8-41f90cd5d486